[Event "Romanian-ch Youth Open U20 2024"]
[Site "Eforie Nord"]
[Date "2024.04.12"]
[Round "1.1"]
[White "Tudor, Henry Edward"]
[Black "Mintau, Andrei-Catalin"]
[Result "1-0"]
[ECO "A58"]
[WhiteElo "2279"]
[BlackElo "2006"]
[Annotator "RC"]
[PlyCount "55"]
[EventDate "2024.04.10"]
[EventType "swiss"]
[EventCountry "ROU"]
[SourceTitle "playchess.com"]
[Source "ChessBase"]
[SourceQuality "1"]
[TimeControl "5400+30"]

1. d4 {[%emt 0:00:03]} Nf6 {[%emt 0:00:05]} 2. c4 {[%emt 0:00:04]} c5 {[%emt 0:00:03]} 3. d5 {[%emt 0:00:05]} b5 {[%emt 0:00:07]} 4. cxb5 {[%emt 0:00:04]} a6 {[%emt 0:00:07]} 5. bxa6 {[%emt 0:00:19]} e6 {[%emt 0:00:29]} 6. Nc3 {[%emt 0:05:04]} exd5 {[%emt 0:00:30]} 7. Nxd5 {[%emt 0:00:13]} Be7 {[%emt 0:00:07]} 8. e3 {[%emt 0:30:10]} Nxd5 {[%emt 0:05:03]} 9. Qxd5 {[%emt 0:00:03]} Ra7 {[%emt 0:00:07]} 10. Nf3 {[%emt 0:18:42]} Nxa6 {[%emt 0:07:51]} 11. a3 {[%emt 0:00:11]} O-O {[%emt 0:14:03]} 12. Be2 {[%emt 0:01:54]} Nb4 {[%emt 0:02:42]} 13. Qd1 {[%emt 0:01:21]} d5 {[%emt 0:01:27]} 14. Bd2 {[%emt 0:12:54]} Nc6 {[%emt 0:01:44]} 15. Rc1 {[%emt 0:00:42]} Bf5 {[%emt 0:10:46]} 16. Bb5 {[%emt 0:03:56]} Na5 {[%emt 0:07:50]} 17. O-O {[%emt 0:07:16]} c4 {[%emt 0:07:08]} 18. Nd4 {[%emt 0:01:58]} Bd3 {[%emt 0:10:11]} 19. Re1 {[%emt 0:00:09]} Bf6 {[%emt 0:06:55]} 20. Bb4 {[%emt 0:03:55]} Qb6 {[%emt 0:09:33]} 21. Bxf8 {[%emt 0:03:09]} Kxf8 {[%emt 0:00:20]} 22. a4 {[%emt 0:01:16]} Be7 {[%emt 0:07:45]} 23. Qd2 {[%emt 0:06:02]} Qd6 {[%emt 0:03:05]} 24. Red1 {[%emt 0:01:05]} Ra8 {[%emt 0:00:44]} 25. Qc3 {[%emt 0:00:50]} Nb7 {[%emt 0:02:03]} 26. Rxd3 {[%emt 0:00:16]} cxd3 {[%emt 0:00:06]} 27. Qxd3 {[%emt 0:00:02]} Nc5 {[%emt 0:00:31]} 28. Qxh7 {[%emt 0:00:07]} 1-0

[Event "Romanian-ch Youth Open U20 2024"]
[Site "Eforie Nord"]
[Date "2024.04.12"]
[Round "1.2"]
[White "Tudoroiu, Razvan-Catalin"]
[Black "Serban, Cristian-Stefan"]
[Result "1/2-1/2"]
[ECO "D02"]
[WhiteElo "2004"]
[BlackElo "2282"]
[Annotator "RC"]
[PlyCount "91"]
[EventDate "2024.04.10"]
[EventType "swiss"]
[EventCountry "ROU"]
[SourceTitle "playchess.com"]
[Source "ChessBase"]
[SourceQuality "1"]
[TimeControl "5400+30"]

1. d4 {[%emt 0:00:31]} Nf6 {[%emt 0:00:10]} 2. Bf4 {[%emt 0:00:19]} d5 {[%emt 0:00:11]} 3. e3 {[%emt 0:00:11]} c5 {[%emt 0:00:06]} 4. Nd2 {[%emt 0:00:40]} e6 {[%emt 0:00:17]} 5. Ngf3 {[%emt 0:01:20]} Qb6 {[%emt 0:00:10]} 6. Rb1 {[%emt 0:07:29]} cxd4 {[%emt 0:00:09]} 7. exd4 {[%emt 0:00:11]} Bd7 {[%emt 0:00:07]} 8. Bd3 {[%emt 0:02:47]} Bb5 {[%emt 0:02:46]} 9. Qe2 {[%emt 0:00:52]} Bxd3 {[%emt 0:00:22]} 10. Qxd3 {[%emt 0:00:06]} Qa6 {[%emt 0:08:03]} 11. Ne5 {[%emt 0:05:56]} Bd6 {[%emt 0:05:11]} 12. h3 {[%emt 0:15:46]} O-O {[%emt 0:09:32]} 13. O-O {[%emt 0:03:42]} Bxe5 {[%emt 0:01:08]} 14. Qxa6 {[%emt 0:02:45]} Nxa6 {[%emt 0:00:12]} 15. Bxe5 {[%emt 0:00:06]} Nd7 {[%emt 0:00:07]} 16. Bg3 {[%emt 0:05:13]} Nab8 {[%emt 0:03:04]} 17. Nb3 {[%emt 0:07:05]} a5 {[%emt 0:14:46]} 18. a4 {[%emt 0:11:43]} Nc6 {[%emt 0:00:11]} 19. c3 {[%emt 0:00:39]} Rfe8 {[%emt 0:04:59]} 20. Nc1 {[%emt 0:02:56]} f6 {[%emt 0:04:43]} 21. Rd1 {[%emt 0:00:50]} Kf7 {[%emt 0:07:24]} 22. Nd3 {[%emt 0:01:42]} e5 {[%emt 0:02:15]} 23. dxe5 {[%emt 0:04:48]} fxe5 {[%emt 0:00:08]} 24. f3 {[%emt 0:01:50]} Nf6 {[%emt 0:05:09]} 25. Re1 {[%emt 0:02:49]} e4 {[%emt 0:01:10]} 26. Nc5 {[%emt 0:01:49]} Ra7 {[%emt 0:03:36]} 27. Bf2 {[%emt 0:08:50]} b6 {[%emt 0:01:25]} 28. Nb3 {[%emt 0:00:04]} Ne5 {[%emt 0:01:39]} 29. Nd4 {[%emt 0:05:22]} Rd7 {[%emt 0:04:12]} 30. Nb5 {[%emt 0:03:45]} exf3 {[%emt 0:08:57]} 31. Bxb6 {[%emt 0:00:25]} fxg2 {[%emt 0:00:18]} 32. Kxg2 {[%emt 0:00:37]} Re6 {[%emt 0:00:24]} 33. Bd4 {[%emt 0:00:58]} Ne4 {[%emt 0:00:14]} 34. Bxe5 {[%emt 0:02:21]} Rxe5 {[%emt 0:00:07]} 35. Nd4 {[%emt 0:00:04]} Rd6 {[%emt 0:01:01]} 36. Re3 {[%emt 0:01:04]} Rg5+ {[%emt 0:01:34]} 37. Kh2 {[%emt 0:00:20]} Rdg6 {[%emt 0:01:02]} 38. Rf1+ {[%emt 0:00:50]} Kg8 {[%emt 0:00:06]} 39. Re2 {[%emt 0:00:03]} h6 {[%emt 0:00:50]} 40. Nf3 {[%emt 0:01:07]} Rh5 {[%emt 0:01:23]} 41. Rg2 {[%emt 0:00:33]} Rf6 {[%emt 0:02:10]} 42. Nd2 {[%emt 0:00:20]} Rxf1 {[%emt 0:01:01]} 43. Nxf1 {[%emt 0:00:05]} Ng5 {[%emt 0:02:20]} 44. Rg3 {[%emt 0:00:28]} Rh4 {[%emt 0:00:06]} 45. Ne3 {[%emt 0:00:33]} Rxa4 {[%emt 0:01:06]} 46. Nxd5 {[%emt 0:00:23]} 1/2-1/2

[Event "Romanian-ch Youth Open U20 2024"]
[Site "Eforie Nord"]
[Date "2024.04.12"]
[Round "1.3"]
[White "Korcsek, Alexandru-David"]
[Black "Coca, Cristi-Iulian"]
[Result "0-1"]
[ECO "B53"]
[WhiteElo "2022"]
[BlackElo "2235"]
[Annotator "TA"]
[PlyCount "134"]
[EventDate "2024.04.10"]
[EventType "swiss"]
[EventCountry "ROU"]
[SourceTitle "playchess.com"]
[Source "ChessBase"]
[SourceQuality "1"]
[TimeControl "5400+30"]

{[%evp 9,134,14,0,0,15,11,12,0,51,38,37,39,53,37,40,42,40,37,47,24,35,6,12,0,8,0,0,14,7,-18,-20,-13,-6,-12,0,-35,-20,-23,-18,-7,-14,-47,0,-53,-38,-51,-21,-24,-16,-18,-10,-30,-22,-27,0,10,10,-22,-11,-27,-16,-21,-22,-39,-39,-42,-46,-80,-49,-46,-39,-55,-51,-72,-62,-81,-52,-66,-55,-56,-64,-63,-36,-54,-54,-77,-74,-106,-69,-202,-203,-209,-200,-545,-554,-1108,-363,-354,-342,-360,-366,-356,-349,-489,-507,-525,-514,-614,-622,-620,-597,-606,-590,-710,-688,-686,-501,-562,-454,-453,-452,-769,-793,-1183,-1306,-1768,-1608]} 1. e4 {[%emt 0:00:05]} c5 {[%emt 0:01:25]} 2. Nf3 {[%emt 0:00:08]} d6 {[%emt 0:01:20]} 3. d4 {[%emt 0:01:09]} cxd4 {[%emt 0:00:06]} 4. Qxd4 {[%emt 0:00:12]} Nc6 {[%emt 0:01:26]} 5. Qe3 {[%emt 0:00:17]} Nf6 {[%emt 0:01:02]} 6. h3 {[%emt 0:00:11]} e6 {[%emt 0:01:13]} 7. c4 {[%emt 0:01:54]} Be7 {[%emt 0:03:11]} 8. Nc3 {[%emt 0:04:08] The position is equal.} Bd7 {[%emt 0:02:04]} (8... d5 $11 9. cxd5 exd5 10. Nxd5 Nxd5 11. exd5 Qxd5) 9. Be2 {[%emt 0:00:55]} Rc8 {[%emt 0:05:42]} 10. O-O {[%emt 0:02:03]} O-O {[%emt 0:01:04]} 11. Rd1 {[%emt 0:02:43]} a6 {[%emt 0:06:14]} 12. b3 {[%emt 0:02:25]} Qa5 {[%emt 0:04:25]} 13. Bb2 {[%emt 0:02:47]} Rfd8 {[%emt 0:03:21]} 14. Rac1 {[%emt 0:12:16]} Be8 {[%emt 0:05:24]} 15. a3 {[%emt 0:02:23]} Qc5 {[%emt 0:08:13]} 16. Qd3 {[%emt 0:07:51][%cal Oc3d5]} Qa7 {[%emt 0:00:25]} 17. b4 {[%emt 0:01:26]} Nd7 {[%emt 0:08:28]} 18. Nb1 {[%emt 0:09:48]} Nde5 {[%emt 0:05:52]} 19. Nxe5 {[%emt 0:01:22]} dxe5 {[%emt 0:00:23]} 20. Qg3 {[%emt 0:02:04]} Nd4 $36 {[%emt 0:01:43][%mdl 2048] White is under pressure.} 21. Bf1 {[%emt 0:01:17]} Bf6 {[%emt 0:09:03]} 22. Nc3 {[%emt 0:13:51]} h6 {[%emt 0:04:20]} 23. Ne2 {[%emt 0:03:30]} Ba4 {[%emt 0:05:02]} 24. Rd3 {[%emt 0:03:02]} Qb8 {[%emt 0:06:58]} 25. Qg4 {[%emt 0:11:35]} Nb3 {[%emt 0:04:23]} (25... Qc7 $15 {is superior.}) 26. Rxd8+ {[%emt 0:04:21]} ({Better is} 26. Rcd1 $1 $11) 26... Rxd8 $15 {[%emt 0:00:06]} (26... Bxd8 27. Rd1 $11) 27. Re1 {[%emt 0:01:57][%cal Oe2f4]} g6 {[%emt 0:06:35]} 28. Nc3 {[%emt 0:02:45]} Be8 {[%emt 0:00:44]} 29. Rd1 {[%emt 0:02:14]} Nd4 {[%emt 0:00:13]} 30. Bd3 {[%emt 0:00:45]} Bg7 {[%emt 0:01:34]} 31. Qg3 {[%emt 0:01:24]} Rd7 {[%emt 0:02:01]} 32. Na4 {[%emt 0:02:00]} Rd8 {[%emt 0:00:59]} 33. Nc3 {[%emt 0:00:47]} Qc8 {[%emt 0:00:16]} 34. Qe3 {[%emt 0:00:21]} Kh7 {[%emt 0:00:19]} 35. Kh1 {[%emt 0:00:28]} Qc7 {[%emt 0:00:20]} 36. Ne2 {[%emt 0:00:47]} Ba4 {[%emt 0:00:22]} 37. Rc1 {[%emt 0:00:46]} h5 {[%emt 0:00:31]} 38. Re1 {[%emt 0:00:56]} Bc2 {[%emt 0:01:37] Black is much more active.} 39. Bxd4 {[%emt 0:00:26]} exd4 {[%emt 0:00:20]} 40. Qf3 {[%emt 0:00:25]} Ba4 {[%emt 0:00:28]} 41. Nf4 {[%emt 0:00:34]} Be5 {[%emt 0:00:57]} 42. Ne2 {[%emt 0:00:36]} Qe7 {[%emt 0:00:17][%cal Oa6a5]} 43. Nc1 {[%emt 0:00:25]} Kg8 {[%emt 0:00:21]} 44. Bb1 {[%emt 0:00:28]} Bc6 {[%emt 0:00:50]} 45. Nd3 {[%emt 0:00:09]} Bg7 {[%emt 0:00:17] A strong pair of Bishops.} 46. Qg3 {[%emt 0:00:27]} e5 {[%emt 0:00:10][%cal Oa6a5]} 47. f4 {[%emt 0:00:40]} exf4 {[%emt 0:00:41]} 48. Qxf4 {[%emt 0:00:06]} Re8 {[%emt 0:00:25][%cal Oe7e6]} 49. e5 {[%emt 0:00:44] White does not recover from this.} (49. Kg1 $15) 49... Qe6 $1 $19 {[%emt 0:00:01][%csl LRc4,LRh3]} 50. Kh2 {[%emt 0:00:18]} Qxc4 {[%emt 0:00:06]} 51. Nc5 $2 {[%emt 0:00:57]} (51. Kg1 {is a better chance.}) 51... Qd5 {[%emt 0:00:38][%csl Gc6,LRe5,LRg2][%cal Rd5g2] [#]} 52. Qe4 {[%emt 0:00:49]} Qxe5+ {[%emt 0:00:37]} (52... Bxe5+ 53. Kg1 Bh2+ 54. Kxh2 Rxe4 55. Bxe4 Qd6+ (55... Qe5+ $2 56. Kh1 $19) 56. Kh1 Bxe4 (56... Qe7 $2 57. Re2 $19) 57. Rxe4 d3 58. Re8+ Kg7) 53. Qxe5 {[%emt 0:00:06]} Rxe5 {[%emt 0:00:05]} ({But not} 53... Bxe5+ 54. Kh1 $19) 54. Rxe5 {[%emt 0:00:54]} Bxe5+ {[%emt 0:00:01][%mdl 4096] Endgame. KBB-KBN} 55. Kg1 {[%emt 0:00:15]} Kg7 {[%emt 0:00:32]} 56. Be4 {[%emt 0:00:07]} (56. Bd3 $142) 56... Bxe4 {[%emt 0:00:30] Black is clearly winning.} 57. Nxe4 {[%emt 0:00:04] KB-KN} b6 {[%emt 0:00:16]} 58. Kf1 {[%emt 0:00:14]} f5 {[%emt 0:00:31]} 59. Nd2 {[%emt 0:00:07]} Kf6 {[%emt 0:00:50]} 60. Ke2 {[%emt 0:00:05]} Ke6 {[%emt 0:00:15]} 61. Kd3 {[%emt 0:00:08]} Kd5 {[%emt 0:00:38]} 62. Nc4 {[%emt 0:01:23]} Bc7 {[%emt 0:00:32] [#] Hoping for ...g5.} 63. Nd2 {[%emt 0:00:11]} Bd8 {[%emt 0:02:16]} 64. Nb3 {[%emt 0:01:38]} Bf6 {[%emt 0:00:06]} 65. Nc1 {[%emt 0:00:10]} (65. a4 $142) 65... g5 {[%emt 0:00:52]} 66. Ne2 {[%emt 0:00:26]} Be5 {[%emt 0:00:04] ...f4 is the strong threat.} 67. a4 {[%emt 0:00:53]} g4 {[%emt 0:00:22] Weighted Error Value: White=0.39/Black=0.22 (precise) .  Mistake:       	White=5     	Black=3      Inaccurate:     	White=8     	Black=6      OK:         	White=15    	Black=22     Best:        	---       	Black=4} 0-1

[Event "Romanian-ch Youth Open U20 2024"]
[Site "Eforie Nord"]
[Date "2024.04.12"]
[Round "1.4"]
[White "Antal, Hunor-Zoltan"]
[Black "Barbu, Simon-Alexandru"]
[Result "0-1"]
[ECO "A35"]
[WhiteElo "2301"]
[BlackElo "1954"]
[Annotator "RC"]
[PlyCount "84"]
[EventDate "2024.04.10"]
[EventType "swiss"]
[EventCountry "ROU"]
[SourceTitle "playchess.com"]
[Source "ChessBase"]
[SourceQuality "1"]
[TimeControl "5400+30"]

1. c4 {[%emt 0:00:27]} c5 {[%emt 0:00:46]} 2. Nc3 {[%emt 0:00:09]} Nc6 {[%emt 0:00:54]} 3. Nf3 {[%emt 0:00:07]} g6 {[%emt 0:00:04]} 4. e3 {[%emt 0:00:12]} Nf6 {[%emt 0:06:58]} 5. d4 {[%emt 0:00:08]} cxd4 {[%emt 0:00:05]} 6. exd4 {[%emt 0:00:05]} d5 {[%emt 0:00:03]} 7. cxd5 {[%emt 0:00:28]} Nxd5 {[%emt 0:00:20]} 8. Qb3 {[%emt 0:00:32]} Nb6 {[%emt 0:24:10]} 9. d5 {[%emt 0:00:45]} Nb8 {[%emt 0:00:04]} 10. Bb5+ {[%emt 0:07:06]} Bd7 {[%emt 0:02:28]} 11. Be2 {[%emt 0:00:31]} Bg7 {[%emt 0:08:34]} 12. O-O {[%emt 0:00:53]} O-O {[%emt 0:01:12]} 13. Bg5 {[%emt 0:05:06]} h6 {[%emt 0:09:49]} 14. Bh4 {[%emt 0:04:10]} Bg4 {[%emt 0:06:37]} 15. Rfd1 {[%emt 0:00:53]} N8d7 {[%emt 0:01:43]} 16. Qb4 {[%emt 0:03:35]} Bxf3 {[%emt 0:27:14]} 17. Bxf3 {[%emt 0:07:16]} g5 {[%emt 0:03:20]} 18. Bg3 {[%emt 0:01:36]} Ne5 {[%emt 0:00:03]} 19. Be2 {[%emt 0:01:06]} Rc8 {[%emt 0:01:34]} 20. d6 {[%emt 0:05:47]} exd6 {[%emt 0:01:43]} 21. Rxd6 {[%emt 0:00:29]} Qc7 {[%emt 0:00:31]} 22. Bxe5 {[%emt 0:02:24]} Bxe5 {[%emt 0:00:10]} 23. Rxh6 {[%emt 0:00:13]} Bxc3 {[%emt 0:01:06]} 24. bxc3 {[%emt 0:03:34]} Qxc3 {[%emt 0:00:13]} 25. Qb1 {[%emt 0:00:30]} Qg7 {[%emt 0:00:50]} 26. Rh5 {[%emt 0:00:09]} Rfe8 {[%emt 0:01:08]} 27. Bd3 {[%emt 0:01:07]} Nd5 {[%emt 0:01:17]} 28. h4 {[%emt 0:03:07]} Re5 {[%emt 0:00:31]} 29. Qxb7 {[%emt 0:02:29]} Rce8 {[%emt 0:00:01]} 30. Bc4 {[%emt 0:10:10]} Nf4 {[%emt 0:01:24]} 31. Bxf7+ {[%emt 0:40:56]} Kf8 32. Qb4+ {[%emt 0:00:00]} Kxf7 {[%emt 0:00:33]} 33. Qb7+ {[%emt 0:00:00]} R8e7 {[%emt 0:00:16]} 34. Qf3 {[%emt 0:00:00]} Kg6 {[%emt 0:00:07]} 35. Rd1 {[%emt 0:00:00]} Nxh5 {[%emt 0:00:05]} 36. Rd6+ {[%emt 0:00:00]} R7e6 {[%emt 0:00:47]} 37. Qd3+ {[%emt 0:00:00]} Kh6 {[%emt 0:00:49]} 38. Rd7 {[%emt 0:00:00]} Re7 {[%emt 0:00:09]} 39. Rd6+ {[%emt 0:00:00]} R5e6 {[%emt 0:00:01]} 40. Rd5 {[%emt 0:00:00]} Nf4 {[%emt 0:00:47]} 41. hxg5+ {[%emt 0:00:00]} Qxg5 {[%emt 0:00:01]} 42. Rxg5 {[%emt 0:00:00]} Nxd3 {[%emt 0:00:01]} 0-1

[Event "Romanian-ch Youth Open U20 2024"]
[Site "Eforie Nord"]
[Date "2024.04.13"]
[Round "2.1"]
[White "Serban, Cristian-Stefan"]
[Black "Antonica, Dragos-Andrei"]
[Result "1-0"]
[ECO "E14"]
[WhiteElo "2282"]
[BlackElo "2317"]
[Annotator "RC"]
[PlyCount "63"]
[EventDate "2024.04.10"]
[EventType "swiss"]
[EventCountry "ROU"]
[SourceTitle "playchess.com"]
[Source "ChessBase"]
[SourceQuality "1"]
[TimeControl "5400+30"]

1. d4 {[%emt 0:03:22]} Nf6 {[%emt 0:00:13]} 2. c4 {[%emt 0:00:10]} e6 {[%emt 0:00:14]} 3. Nf3 {[%emt 0:00:08]} Bb4+ {[%emt 0:00:50]} 4. Nbd2 {[%emt 0:00:12]} b6 {[%emt 0:01:00]} 5. a3 {[%emt 0:00:31]} Bxd2+ {[%emt 0:00:07]} 6. Qxd2 {[%emt 0:00:06]} Bb7 {[%emt 0:00:03]} 7. e3 {[%emt 0:00:10]} O-O {[%emt 0:01:12]} 8. Be2 {[%emt 0:00:06]} d5 {[%emt 0:00:22]} 9. O-O {[%emt 0:00:09]} Nbd7 {[%emt 1:30:59]} 10. cxd5 {[%emt 0:02:05]} Bxd5 {[%emt 0:00:00]} 11. b4 {[%emt 0:00:13]} c5 {[%emt 0:00:00]} 12. dxc5 {[%emt 0:03:43]} bxc5 {[%emt 0:00:00]} 13. Bb2 {[%emt 0:00:21]} Ne4 {[%emt 0:00:00]} 14. Qc2 {[%emt 0:01:57]} Rc8 {[%emt 0:00:00]} 15. Ba6 {[%emt 0:11:12]} Rc7 {[%emt 0:00:00]} 16. Rac1 {[%emt 0:00:12]} c4 {[%emt 0:00:00]} 17. Qe2 {[%emt 0:06:06]} c3 {[%emt 0:00:00]} 18. Ba1 {[%emt 0:00:10]} Qa8 {[%emt 0:00:00]} 19. Rfe1 {[%emt 0:11:52]} Ndf6 {[%emt 0:00:00]} 20. Ne5 {[%emt 0:04:41]} Bb3 {[%emt 0:00:00]} 21. f3 {[%emt 0:02:26]} Qd5 {[%emt 0:00:00]} 22. Nd3 {[%emt 0:00:19]} Qd6 {[%emt 0:00:00]} 23. Nf4 {[%emt 0:04:05]} e5 {[%emt 0:00:15]} 24. Nh3 {[%emt 0:00:10]} Nd2 {[%emt 0:03:47]} 25. Rxc3 {[%emt 0:01:52]} Rxc3 {[%emt 0:00:45]} 26. Bxc3 {[%emt 0:00:09]} Rd8 {[%emt 0:00:02]} 27. Nf2 {[%emt 0:02:00]} Ba4 {[%emt 0:02:07]} 28. Bb5 {[%emt 0:07:00]} Bxb5 {[%emt 0:01:13]} 29. Qxb5 {[%emt 0:00:08]} a6 {[%emt 0:01:10]} 30. Qe2 {[%emt 0:03:34]} Nb3 {[%emt 0:00:15]} 31. Qb2 {[%emt 0:00:37]} Qe6 {[%emt 0:00:47]} 32. Rb1 {[%emt 0:00:36]} 1-0

[Event "Romanian-ch Youth Open U20 2024"]
[Site "Eforie Nord"]
[Date "2024.04.13"]
[Round "2.2"]
[White "Tudor, Henry Edward"]
[Black "Tudoroiu, Razvan-Catalin"]
[Result "1-0"]
[ECO "A67"]
[WhiteElo "2279"]
[BlackElo "2004"]
[Annotator "RC"]
[PlyCount "67"]
[EventDate "2024.04.10"]
[EventType "swiss"]
[EventCountry "ROU"]
[SourceTitle "playchess.com"]
[Source "ChessBase"]
[SourceQuality "1"]
[TimeControl "5400+30"]

1. d4 {[%emt 0:00:02]} Nf6 {[%emt 0:00:35]} 2. c4 {[%emt 0:00:06]} c5 {[%emt 0:00:07]} 3. d5 {[%emt 0:01:23]} e6 {[%emt 0:00:08]} 4. Nc3 {[%emt 0:05:17]} exd5 {[%emt 0:00:14]} 5. cxd5 {[%emt 0:00:03]} d6 {[%emt 0:00:08]} 6. e4 {[%emt 0:00:28]} g6 {[%emt 0:00:08]} 7. f4 {[%emt 0:00:05]} Bg7 {[%emt 0:00:03]} 8. Bb5+ {[%emt 0:00:04]} Nfd7 {[%emt 0:00:07]} 9. a4 {[%emt 0:03:58]} Na6 {[%emt 0:00:34]} 10. Nf3 {[%emt 0:00:23]} Nb4 {[%emt 0:01:07]} 11. O-O {[%emt 0:00:42]} O-O {[%emt 0:00:31]} 12. Be3 {[%emt 0:13:58]} a6 {[%emt 0:01:44]} 13. Be2 {[%emt 0:03:23]} Nf6 {[%emt 0:00:06]} 14. Nd2 {[%emt 0:05:59]} Qe7 {[%emt 0:03:20]} 15. Bf2 {[%emt 0:05:03]} Rb8 {[%emt 0:01:13]} 16. a5 {[%emt 0:05:24]} Re8 {[%emt 0:02:31]} 17. Re1 {[%emt 0:05:09]} Bd7 {[%emt 0:02:02]} 18. Kh1 {[%emt 0:11:18]} h5 {[%emt 0:00:59]} 19. h3 {[%emt 0:03:43]} Nh7 {[%emt 0:04:48]} 20. Nc4 {[%emt 0:09:14]} Bb5 {[%emt 0:07:46]} 21. Bf1 {[%emt 0:12:33]} Bxc4 {[%emt 0:20:28]} 22. Bxc4 {[%emt 0:00:40]} Qf6 {[%emt 0:04:17]} 23. Qd2 {[%emt 0:02:02]} Bh6 {[%emt 0:04:09]} 24. Be3 {[%emt 0:00:38]} Qh4 {[%emt 0:08:33]} 25. b3 {[%emt 0:06:03]} Nf6 {[%emt 0:10:22]} 26. Bf2 {[%emt 0:00:03]} Bxf4 {[%emt 0:06:41]} 27. Bxh4 {[%emt 0:00:12]} Bxd2 {[%emt 0:00:04]} 28. Bxf6 {[%emt 0:00:02]} Nc2 {[%emt 0:00:07]} 29. Re2 {[%emt 0:02:30]} Bxc3 {[%emt 0:00:16]} 30. Bxc3 {[%emt 0:00:05]} Nxa1 {[%emt 0:00:04]} 31. Bxa1 {[%emt 0:00:02]} Rf8 {[%emt 0:06:46]} 32. Bf6 {[%emt 0:01:24]} Rfe8 {[%emt 0:00:08]} 33. e5 {[%emt 0:00:53]} dxe5 {[%emt 0:00:08]} 34. d6 {[%emt 0:00:09]} 1-0

[Event "Romanian-ch Youth Open U20 2024"]
[Site "Eforie Nord"]
[Date "2024.04.13"]
[Round "2.3"]
[White "Coca, Cristi-Iulian"]
[Black "Prisacaru, Stefan-Emilian"]
[Result "1/2-1/2"]
[ECO "C00"]
[WhiteElo "2235"]
[BlackElo "2286"]
[Annotator "RC"]
[PlyCount "53"]
[EventDate "2024.04.10"]
[EventType "swiss"]
[EventCountry "ROU"]
[SourceTitle "playchess.com"]
[Source "ChessBase"]
[SourceQuality "1"]
[TimeControl "5400+30"]

1. e4 {[%emt 0:01:10]} e6 {[%emt 0:00:16]} 2. d3 {[%emt 0:04:05]} d5 {[%emt 0:00:24]} 3. Nd2 {[%emt 0:00:07]} Nf6 {[%emt 0:02:08]} 4. Ngf3 {[%emt 0:00:10]} Nc6 {[%emt 0:00:56]} 5. g3 {[%emt 0:01:21]} dxe4 {[%emt 0:04:35]} 6. dxe4 {[%emt 0:00:09]} e5 {[%emt 0:00:05]} 7. Bg2 {[%emt 0:01:34]} Bc5 {[%emt 0:01:16]} 8. O-O {[%emt 0:01:15]} O-O {[%emt 0:00:27]} 9. c3 {[%emt 0:01:54]} a5 {[%emt 0:02:01]} 10. Qc2 {[%emt 0:02:37]} b5 {[%emt 0:21:44]} 11. h3 {[%emt 0:02:05]} Be6 {[%emt 0:07:29]} 12. Kh2 {[%emt 0:00:50]} h6 {[%emt 0:04:32]} 13. Ne1 {[%emt 0:06:04]} Nd7 {[%emt 0:14:31]} 14. f4 {[%emt 0:09:47]} f6 {[%emt 0:00:05]} 15. f5 {[%emt 0:02:08]} Bf7 {[%emt 0:00:02]} 16. g4 {[%emt 0:03:06]} Be3 {[%emt 0:02:01]} 17. Ndf3 {[%emt 0:01:09]} Bxc1 {[%emt 0:00:47]} 18. Qxc1 {[%emt 0:00:04]} Nc5 {[%emt 0:05:16]} 19. Qe3 {[%emt 0:02:05]} Qd6 {[%emt 0:03:17]} 20. h4 {[%emt 0:02:39]} Nxe4 {[%emt 0:08:59]} 21. Qxe4 {[%emt 0:19:50]} Bd5 {[%emt 0:00:04]} 22. Qc2 {[%emt 0:02:02]} e4+ {[%emt 0:00:22]} 23. Kh3 {[%emt 0:00:31]} exf3 {[%emt 0:00:06]} 24. Nxf3 {[%emt 0:02:04]} Qc5 {[%emt 0:05:18]} 25. Qf2 {[%emt 0:06:19]} Qxf2 {[%emt 0:02:05]} 26. Rxf2 {[%emt 0:00:02]} Rad8 {[%emt 0:00:07]} 27. a4 {[%emt 0:06:09]} 1/2-1/2